bitfinex-derivatives/quotes_ETHF0:USTF0_20260204
["timestamp","ask_amount","ask_price","bid_price","bid_amount"]
[1770235460993,0.458,2186.2,2184.0,2.62414879]
[1770235460994,7.74095282,2185.9,2184.0,2.62414879]
[1770235461200,7.51175282,2185.6,2184.1,7.04450793]
[1770235461504,7.51175282,2185.3,2184.1,7.04450793]
[1770235461701,7.97456845,2185.3,2184.0,7.05006323]
[1770235461896,7.97456845,2185.3,2184.0,11.62126323]
[1770235462197,0.00481563,2185.3,2184.5,7.27384793]
[1770235462402,7.51656845,2185.3,2184.1,7.04450793]
[1770235462602,8.20382845,2185.3,2184.0,0.0055553]
[1770235462899,7.51175282,2185.0,2184.0,0.0055553]
[1770235464903,7.94774302,2185.3,2184.1,7.4843982]
[1770235465103,7.94774302,2185.3,2184.3,4.5712]
[1770235465704,7.94774302,2185.3,2184.4,4.5712]
[1770235465903,7.94774302,2185.3,2184.5,4.5712]
[1770235466201,7.94774302,2185.3,2184.6,4.5712]
[1770235466395,7.94774302,2185.3,2184.0,0.0055553]
[1770235466594,7.71424739,2184.7,2183.4,7.4843982]
[1770235467104,7.48492739,2184.5,2183.0,7.4843982]
[1770235467399,7.48492739,2184.3,2183.0,7.4843982]
[1770235467605,7.48492739,2184.3,2183.1,4.5712]
[1770235467798,7.48492739,2184.3,2183.2,4.5712]
[1770235468301,7.48492739,2184.3,2183.3,4.5712]
[1770235468507,7.48492739,2184.3,2183.5,4.5712]
[1770235468703,7.48492739,2184.3,2183.4,4.5712]
[1770235469200,7.48492739,2184.3,2183.6,4.5712]
[1770235469403,7.48492739,2184.3,2183.3,4.5712]
[1770235469707,7.48492739,2184.1,2183.0,4.57501449]
[1770235469908,7.48492739,2184.1,2183.0,0.00381449]
[1770235470103,7.48492739,2184.1,2183.2,4.5712]
[1770235470303,7.48492739,2184.1,2183.0,0.00381449]
[1770235470608,7.71430739,2184.1,2183.0,0.00381449]
[1770235471202,7.71430739,2184.1,2183.1,4.5712]
[1770235471610,7.71430739,2184.1,2183.2,4.5712]
[1770235472111,7.48492739,2184.1,2183.5,4.5712]
[1770235472309,7.48492739,2184.1,2183.7,4.5712]
[1770235472509,0.458,2184.4,2183.6,4.5712]
[1770235472810,7.94292739,2184.4,2183.5,4.5712]
[1770235473011,7.94292739,2184.4,2183.6,4.5712]
[1770235473413,7.94292739,2184.4,2183.8,4.5712]
[1770235473612,7.94292739,2184.4,2183.6,4.5712]
[1770235474012,7.94292739,2184.4,2183.8,4.5712]
[1770235474213,7.94292739,2184.4,2183.2,7.16216047]
[1770235474413,7.94292739,2184.4,2183.7,4.5712]
[1770235474712,7.48492739,2184.4,2183.8,4.5712]
[1770235474913,7.94292739,2184.7,2183.9,4.5712]
[1770235475213,7.94292739,2184.7,2183.7,4.5712]
[1770235475606,7.94292739,2184.7,2183.8,4.5712]
[1770235475911,7.94292739,2184.7,2183.3,7.24587221]
[1770235475912,7.94292739,2184.7,2183.5,4.5712]
[1770235476306,7.94292739,2184.7,2183.6,4.5712]
[1770235476508,7.94292739,2184.7,2183.5,4.5712]
[1770235476904,7.71419739,2185.2,2183.7,0.22942]
[1770235477111,7.48492739,2185.0,2183.8,6.99448576]
[1770235477306,7.48492739,2184.7,2183.8,4.5712]
[1770235477616,7.48492739,2184.5,2183.1,6.99002583]
[1770235477811,7.48492739,2184.5,2183.4,4.5712]
[1770235478011,7.48492739,2184.5,2183.5,4.5712]
[1770235478411,7.48492739,2184.5,2183.7,4.5712]
[1770235478611,7.48492739,2184.5,2183.5,4.5712]
[1770235478912,7.71427739,2184.5,2183.3,4.5712]
[1770235479208,7.71427739,2184.5,2183.1,6.99002583]
[1770235479209,0.458,2184.6,2183.7,11.56122583]
[1770235479411,7.94292739,2184.6,2183.5,4.5712]
[1770235479814,7.94292739,2184.6,2183.0,7.0470524]
[1770235479815,7.71429739,2184.3,2183.0,7.0470524]
[1770235480007,7.71429739,2184.3,2183.1,4.5712]
[1770235480206,7.71429739,2184.3,2183.2,11.61443791]
[1770235480419,7.48492739,2184.3,2183.7,4.5712]
[1770235480814,7.94292739,2184.6,2183.8,4.5712]
[1770235481013,7.94292739,2184.6,2183.5,4.5712]
[1770235481410,7.48492739,2184.4,2183.0,7.0470524]
[1770235481709,7.48492739,2184.2,2183.1,4.5712]
[1770235482111,7.48492739,2184.2,2183.3,4.5712]
[1770235482316,7.71430739,2184.2,2183.2,4.5712]
[1770235482511,7.71430739,2184.2,2183.0,7.0470524]
[1770235482715,7.71430739,2184.2,2183.3,4.5712]
[1770235483225,7.71430739,2184.2,2183.4,4.5712]
[1770235483413,7.71430739,2184.2,2183.3,4.5712]
[1770235483610,7.48492739,2184.0,2183.3,4.5712]
[1770235483818,7.48492739,2184.0,2183.0,0.00381449]
[1770235484018,7.48492739,2184.0,2183.1,4.5712]
[1770235484215,7.71431739,2184.0,2183.1,4.5712]
[1770235484618,7.71431739,2184.0,2183.2,4.5712]
[1770235484814,7.71431739,2184.0,2183.1,4.5712]
[1770235485318,7.48492739,2183.8,2183.0,0.00381449]
[1770235485512,7.48492739,2183.6,2183.0,0.00381449]
[1770235485714,7.4883204,2183.6,2183.0,0.00381449]
[1770235486319,7.7177504,2183.6,2183.0,0.00381449]
[1770235486519,7.48492739,2183.4,2182.3,7.09248961]
[1770235486721,7.71438739,2183.4,2182.3,7.09248961]
[1770235487518,7.71438739,2183.4,2182.3,7.09806233]
[1770235488419,7.71440739,2183.2,2182.3,0.00557272]
[1770235488616,7.48492739,2183.0,2182.3,0.00557272]
[1770235488812,7.48492739,2182.5,2181.4,7.4843982]
[1770235489121,7.71447739,2182.5,2181.4,7.4843982]
[1770235489416,7.48492739,2182.5,2181.1,7.4843982]
[1770235489618,7.48492739,2183.1,2181.6,7.4843982]
[1770235489919,7.48492739,2183.1,2181.6,7.71757398]
[1770235490613,7.48492739,2183.1,2181.9,7.4843982]
[1770235490814,0.22942,2183.8,2182.3,7.4843982]
[1770235491114,7.48492739,2183.7,2182.3,7.7139682]
[1770235491315,7.48492739,2184.0,2182.6,7.4843982]
[1770235491916,7.48492739,2184.0,2182.5,0.22955]
[1770235491917,7.48492739,2184.3,2182.8,7.4843982]
[1770235492214,7.71430739,2184.1,2182.8,7.4843982]
[1770235492610,0.458,2184.4,2182.1,7.4843982]
[1770235492611,7.48492739,2183.6,2182.1,7.4843982]
[1770235492812,7.48492739,2183.3,2182.1,7.4843982]
[1770235493721,7.48492739,2183.4,2182.1,7.4843982]
[1770235494613,0.458,2183.5,2182.1,7.4843982]
[1770235494817,0.458,2183.5,2182.4,7.24351259]
[1770235495215,7.65527056,2183.5,2182.4,7.24351259]
[1770235495515,7.19727056,2184.3,2183.1,7.24351259]
[1770235496115,7.19727056,2183.9,2182.5,9.86210608]
[1770235496319,7.42669056,2183.8,2182.6,7.24351259]
[1770235496522,7.19727056,2183.8,2182.6,7.24351259]
[1770235496720,0.46299869,2183.9,2182.6,7.24351259]
[1770235498019,7.66026925,2183.9,2182.6,7.24351259]
[1770235499625,0.46299869,2183.9,2182.9,6.8935739]
[1770235500924,7.15038969,2183.2,2182.1,6.8935739]
[1770235501321,6.92090969,2183.5,2182.1,6.8935739]
[1770235501523,0.46299869,2183.9,2182.7,6.8935739]
[1770235501724,6.92090969,2183.8,2182.3,2.61859349]
[1770235502024,0.46299869,2183.9,2182.5,6.8935739]
[1770235502222,0.46299869,2183.9,2182.4,0.22956]
[1770235502223,0.46299869,2183.9,2182.7,6.8935739]
[1770235502423,0.46299869,2183.9,2182.7,7.1231039]
[1770235502824,0.46299869,2183.9,2182.7,6.8935739]
[1770235503024,6.92090969,2184.4,2183.2,6.8935739]
[1770235503523,0.22941,2183.9,2182.9,6.8935739]
[1770235504129,0.00439904,2183.9,2182.9,6.89743316]
[1770235505524,0.00439904,2183.9,2182.9,7.12693316]
[1770235505730,0.458,2184.6,2183.4,6.8935739]
[1770235506027,6.92090969,2184.8,2183.6,6.8935739]
[1770235506228,0.2293,2184.9,2183.6,6.8935739]
[1770235506624,0.2293,2184.9,2183.8,6.8935739]
[1770235506625,0.00556477,2184.9,2183.8,6.8935739]
[1770235506833,0.458,2185.2,2184.0,6.8935739]
[1770235507125,0.2293,2185.0,2183.7,6.8935739]
[1770235507631,7.37890969,2185.2,2183.7,6.8935739]
[1770235507928,7.38315824,2185.2,2183.7,7.1229939]
[1770235508128,7.38315824,2185.2,2183.8,6.8935739]
[1770235508328,6.92090969,2185.0,2183.8,6.8935739]
[1770235509226,7.15021969,2184.9,2183.8,6.8935739]
[1770235509429,0.22937,2184.2,2183.4,6.8935739]
[1770235509626,0.22937,2184.2,2183.1,6.8935739]
[1770235510022,6.92090969,2184.4,2183.1,6.8935739]
[1770235510224,7.15022969,2184.7,2183.1,6.8935739]
[1770235510432,6.92090969,2184.6,2183.1,7.1230539]
[1770235510628,0.22935,2184.4,2183.1,6.8935739]
[1770235510822,7.15027969,2184.3,2183.1,6.8935739]
[1770235511028,6.92090969,2184.6,2183.1,6.8935739]
[1770235511231,6.92090969,2184.6,2183.1,7.1230639]
[1770235511428,0.22931,2184.8,2183.1,7.1230639]
[1770235511633,0.22931,2184.8,2183.3,7.1230339]
[1770235511834,0.22932,2184.7,2183.3,7.1230339]
[1770235512028,6.92090969,2184.9,2183.3,7.1230339]
[1770235512333,7.15026969,2184.3,2183.3,6.8935739]
[1770235513235,7.15026969,2184.3,2183.0,6.8935739]
[1770235513236,0.22938,2184.1,2183.0,6.8935739]
[1770235513637,6.92090969,2184.6,2183.0,7.1230739]
[1770235513936,7.15023969,2184.6,2183.2,6.8935739]
[1770235514330,6.92090969,2184.9,2183.5,6.8935739]
[1770235514536,0.22932,2184.7,2183.5,6.8935739]
[1770235515336,7.15022969,2184.7,2183.5,6.8935739]
[1770235515537,7.15024969,2184.5,2183.5,6.8935739]
[1770235515737,7.15024969,2184.5,2183.0,6.8935739]
[1770235516138,7.15026969,2184.3,2183.0,6.8935739]
[1770235516639,7.15027969,2184.2,2183.0,6.8935739]
[1770235516840,7.15031969,2183.9,2183.0,6.8935739]
[1770235517140,0.22941,2183.9,2182.9,6.89743316]
[1770235517734,6.92090969,2184.2,2182.9,6.89743316]
[1770235518241,0.68736,2184.3,2182.9,7.12693316]
[1770235518434,7.60826969,2184.3,2182.9,7.12693316]
[1770235518939,7.15026969,2184.3,2182.9,7.12693316]
[1770235519439,0.22936,2184.3,2183.1,6.8935739]
[1770235519736,0.458,2184.7,2183.5,6.8935739]
[1770235520142,7.60822969,2184.7,2183.5,6.8935739]
[1770235520443,7.15023969,2184.6,2183.5,6.8935739]
[1770235521044,0.22935,2184.4,2183.5,6.8935739]
[1770235521343,7.15025969,2184.4,2183.5,6.8935739]
[1770235521842,7.37890969,2184.7,2183.5,6.8935739]
[1770235522539,1.05890855,2185.2,2184.1,6.8935739]
[1770235522540,6.92515824,2185.2,2184.1,6.8935739]
[1770235522738,0.00424855,2185.2,2184.1,6.8935739]
[1770235522938,6.92515824,2185.2,2184.1,6.8935739]
[1770235523139,7.15019969,2185.0,2184.1,6.8935739]
[1770235525843,7.37330752,2184.8,2183.7,7.32789118]
[1770235526233,0.22931,2184.8,2183.7,7.32789118]
[1770235526540,7.14399752,2185.1,2183.7,7.32789118]
[1770235526940,0.69151855,2185.2,2183.7,7.32789118]
[1770235526941,0.69151855,2185.2,2183.9,7.32789118]
[1770235527143,7.83551607,2185.2,2183.9,7.55729118]
[1770235529549,6.78147597,2185.8,2184.0,2.11044]
[1770235529744,7.14399752,2186.5,2184.8,7.55720118]
[1770235529944,7.14399752,2186.2,2184.8,7.32789118]
[1770235530147,7.14399752,2186.0,2184.8,7.32789118]
[1770235530347,7.14399752,2186.4,2184.8,7.32789118]
[1770235530547,7.14399752,2186.4,2184.8,7.33315358]
[1770235530548,7.14778743,2186.4,2184.8,7.33315358]
[1770235530744,7.37693743,2186.4,2184.8,7.33315358]
[1770235531041,7.14399752,2186.0,2184.8,7.33315358]
[1770235531250,0.22918,2186.1,2184.8,7.33315358]
[1770235531445,7.14399752,2186.3,2184.8,7.33315358]
[1770235532850,7.14399752,2186.3,2184.9,7.32789118]
[1770235534154,7.37315752,2186.3,2184.9,7.32789118]
[1770235535257,7.14399752,2186.1,2184.9,7.32789118]
[1770235537053,7.37320752,2185.7,2184.8,0.0052624]
[1770235537253,7.14399752,2185.7,2184.8,0.0052624]
[1770235537456,7.14399752,2185.5,2184.1,7.78589118]
[1770235538356,7.14399752,2185.5,2184.1,7.79009192]
[1770235539657,7.14399752,2185.1,2184.1,0.00420074]
[1770235540052,7.37329752,2184.9,2184.1,0.00420074]
[1770235540253,7.37329752,2184.9,2183.8,0.9138]
[1770235540661,7.14399752,2184.6,2183.8,0.9138]
[1770235540960,7.37334752,2184.4,2183.2,7.78589118]
[1770235541161,7.37703106,2184.4,2183.2,7.79083762]
[1770235542061,7.14768106,2184.4,2183.2,7.79083762]
[1770235543155,7.14399752,2184.1,2183.2,0.46294644]
[1770235543363,7.14399752,2184.1,2183.2,0.00494644]
[1770235543563,7.37337752,2184.1,2183.2,0.00494644]
[1770235543957,7.37337752,2184.1,2182.9,7.32789118]
[1770235543958,7.14399752,2183.6,2182.3,7.32789118]
[1770235544263,7.14399752,2183.6,2182.0,7.32789118]
[1770235544264,7.83143752,2183.6,2182.0,7.32789118]
[1770235544664,7.14399752,2183.4,2182.0,7.32789118]
[1770235545160,0.458,2183.6,2182.0,7.32789118]
[1770235545161,7.14399752,2183.2,2182.0,7.33188468]
[1770235545861,7.14399752,2182.9,2182.0,0.0039935]
[1770235546056,1.05564,2183.2,2181.3,0.458]
[1770235546057,7.14399752,2182.7,2181.3,7.78589118]
[1770235546364,7.60199752,2182.7,2181.3,7.78589118]
[1770235547066,7.6074256,2182.7,2181.3,7.79054751]
[1770235547659,0.46342808,2182.7,2181.3,7.79054751]
[1770235548064,7.6074256,2182.7,2181.3,7.79054751]
[1770235549562,0.46342808,2182.7,2181.5,7.32789118]
[1770235549963,0.00542808,2182.7,2181.7,7.32789118]
[1770235551358,7.37346752,2183.3,2181.9,7.32789118]
[1770235551561,7.14399752,2183.6,2182.3,0.22957]
[1770235551758,7.14399752,2184.2,2182.9,7.32789118]
[1770235552366,0.00575217,2184.2,2183.1,7.32789118]
[1770235553058,7.37330752,2184.8,2183.3,7.32789118]
[1770235553457,0.458,2184.9,2183.3,7.32789118]
[1770235553458,0.22936,2184.3,2183.3,7.32789118]
[1770235553659,7.37335752,2184.3,2183.3,7.32789118]
[1770235553862,7.86256178,2184.2,2183.1,0.458]
[1770235554157,7.86647417,2184.2,2183.1,0.458]
[1770235554765,7.63319178,2183.9,2183.1,0.458]
[1770235555062,7.86262178,2183.7,2182.9,0.00361696]
[1770235555264,7.86262178,2183.7,2182.9,7.1561375]
[1770235555265,0.22943,2183.7,2182.9,7.1561375]
[1770235555567,7.86262178,2183.7,2182.9,0.00361696]
[1770235557361,7.86268178,2183.1,2181.8,7.15252054]
[1770235558167,7.63319178,2182.8,2181.8,0.00355262]
[1770235558367,7.63319178,2182.5,2181.1,7.15252054]
[1770235558872,7.86274178,2182.5,2181.1,7.15252054]
[1770235559469,7.86602312,2182.5,2181.1,7.15773495]
[1770235560473,0.00328134,2182.5,2181.1,7.15773495]
[1770235560672,0.00328134,2182.5,2181.4,7.2437553]
[1770235561075,0.458,2183.1,2181.6,7.4733953]
[1770235561276,7.9517046,2183.1,2181.6,7.4733953]
[1770235562170,7.95503088,2183.1,2181.8,7.2437553]
[1770235563072,7.4937046,2182.7,2181.4,7.2437553]
[1770235563378,7.4937046,2182.5,2181.4,7.2437553]
[1770235564778,7.4937046,2182.3,2181.2,0.458]
[1770235564979,7.4937046,2182.1,2181.1,0.00521441]
[1770235565272,7.4937046,2182.1,2180.3,3.67]
[1770235565273,7.4937046,2181.3,2180.1,7.2437553]
[1770235566068,1.05625,2181.9,2179.7,7.2437553]
[1770235566069,7.4937046,2181.1,2179.7,7.2437553]
[1770235566268,7.4937046,2181.1,2179.4,7.2437553]
[1770235566269,7.4937046,2180.9,2179.4,7.2437553]
[1770235566470,7.4937046,2180.9,2179.4,7.4736353]
[1770235566674,7.9517046,2181.0,2179.6,7.2437553]
[1770235567077,7.95643604,2181.0,2179.6,7.24962184]
[1770235567475,8.18614604,2181.0,2179.6,7.24962184]
[1770235567877,7.95643604,2181.0,2179.6,7.24962184]
[1770235568077,7.95643604,2181.0,2179.6,7.47947184]
[1770235569175,7.95643604,2181.0,2179.6,7.24962184]
[1770235569380,0.22973,2180.9,2179.6,7.24962184]
[1770235570080,7.4937046,2180.4,2179.6,0.00586654]
[1770235570780,7.4937046,2180.2,2179.3,0.22196456]
[1770235570980,7.7234946,2180.2,2179.3,0.22196456]
[1770235571381,7.4937046,2180.2,2179.3,0.22196456]
[1770235571577,7.4937046,2180.6,2179.3,7.46571986]
[1770235571777,7.4937046,2180.6,2179.3,7.46961375]
[1770235572075,7.4937046,2180.3,2179.3,0.22585845]
[1770235572283,7.4937046,2180.1,2179.3,0.22585845]
[1770235572479,7.9527046,2180.1,2179.3,0.22585845]
[1770235574480,0.459,2180.1,2179.3,7.46961375]
[1770235574885,7.49843604,2181.0,2179.5,7.2437553]
[1770235575583,7.49843604,2181.0,2179.5,7.4736253]
[1770235577778,0.00473144,2181.0,2179.8,0.22983]
[1770235577981,1.05606,2182.3,2180.2,7.2437553]
[1770235577982,7.4937046,2181.7,2180.2,7.2437553]
[1770235578182,7.4937046,2181.7,2180.2,7.4735453]
[1770235578381,7.9527046,2182.0,2180.6,7.2437553]
[1770235578678,7.9527046,2182.0,2180.6,7.4735053]
[1770235579191,7.95677328,2182.0,2180.6,7.4735053]
[1770235580076,7.95677328,2182.0,2180.9,7.2437553]
[1770235580282,7.95677328,2182.0,2180.9,7.24810685]
[1770235581789,0.46306868,2182.0,2181.1,7.2437553]
[1770235581985,7.4937046,2182.8,2181.4,7.2437553]
[1770235582282,7.4937046,2182.8,2181.6,7.2437553]
[1770235583179,0.00484767,2182.8,2181.8,7.2437553]
[1770235583381,7.4937046,2183.5,2182.1,0.22959]
[1770235583579,7.4937046,2183.5,2181.7,7.2437553]
[1770235583580,0.22947,2183.3,2181.7,7.2437553]
[1770235583780,7.4937046,2183.2,2181.7,7.2437553]
[1770235583980,7.7231846,2183.2,2181.7,7.4733853]
[1770235584183,7.4937046,2183.2,2181.7,7.4733853]
[1770235584385,6.95298406,2182.9,2181.7,7.4733853]
[1770235584982,6.95298406,2182.6,2181.4,6.87649422]
[1770235585187,6.95298406,2183.0,2181.4,6.87649422]
[1770235585584,7.18248406,2183.0,2181.5,7.10614422]
[1770235586584,6.95298406,2183.0,2181.1,7.33549422]
[1770235586788,7.18251406,2182.7,2181.3,6.87649422]
[1770235586989,6.95298406,2183.0,2181.5,6.87649422]
[1770235587189,6.95298406,2183.0,2181.7,6.87649422]
[1770235587590,6.95298406,2183.0,2181.7,7.10612422]
[1770235590189,6.95298406,2183.0,2181.9,6.87649422]
[1770235591092,0.00571766,2183.2,2182.1,7.10608422]
[1770235592092,0.00571766,2183.2,2182.5,6.87649422]
[1770235592292,0.00571766,2183.2,2182.5,6.88140897]
[1770235593095,6.95870172,2183.2,2182.5,0.00491475]
[1770235593589,7.18818172,2183.2,2182.5,0.00491475]
[1770235593993,6.95298406,2182.8,2181.7,6.87649422]
[1770235594492,6.95298406,2182.8,2181.5,0.22965]
[1770235594694,6.95298406,2182.6,2181.1,7.33549422]
[1770235594989,6.95298406,2182.6,2181.3,6.87649422]
[1770235595594,6.95298406,2182.6,2181.1,0.46328031]
[1770235595595,6.95298406,2182.4,2181.1,0.46328031]
[1770235595996,6.95298406,2182.1,2181.1,0.46328031]
[1770235596496,6.95298406,2182.5,2181.2,7.10617422]
[1770235596897,6.95298406,2182.8,2181.4,7.10615422]
[1770235597496,6.95298406,2182.5,2181.4,6.87649422]
[1770235597696,6.95298406,2182.3,2181.1,0.46328031]
[1770235598596,6.95298406,2182.1,2181.1,0.46328031]
[1770235599895,6.95298406,2182.6,2181.1,7.33977453]
[1770235600091,6.95298406,2182.6,2181.3,6.87649422]
[1770235600595,6.95298406,2182.6,2181.4,7.10615422]
[1770235600794,6.95298406,2182.6,2181.5,7.10614422]
[1770235600995,6.95298406,2182.8,2181.3,6.87649422]
[1770235601298,6.95298406,2182.8,2181.5,6.87649422]
[1770235601900,6.95298406,2182.6,2181.4,0.22966]
[1770235602090,6.95298406,2182.6,2181.6,0.9167]
[1770235603696,0.459,2182.9,2181.6,8.02283422]
[1770235603896,0.00571766,2183.2,2182.0,6.87649422]
[1770235604198,6.95298406,2183.5,2182.5,6.87649422]
[1770235604394,0.22938,2184.2,2182.7,0.22953]
[1770235604395,6.95298406,2183.9,2182.7,0.22953]
[1770235604600,6.95298406,2184.2,2183.0,7.10599422]
[1770235605101,6.95638701,2184.2,2183.2,6.87649422]
[1770235605298,0.00340295,2184.2,2183.2,6.87649422]
[1770235605495,6.95638701,2184.2,2183.1,0.22949]
[1770235605901,6.95638701,2184.2,2183.0,0.00413899]
[1770235607098,7.18575701,2184.2,2183.0,0.00413899]
[1770235608407,6.95298406,2184.0,2183.0,0.00413899]
[1770235608606,6.95298406,2183.8,2182.2,2.63254948]
[1770235608901,7.18243406,2183.5,2182.1,0.459]
[1770235609699,6.95298406,2183.3,2182.1,0.46269991]
[1770235610605,6.95298406,2183.3,2182.1,7.56878413]
[1770235610801,7.18245406,2183.3,2182.1,0.00369991]
[1770235611103,6.95298406,2183.1,2182.1,0.00369991]
[1770235612503,6.95298406,2182.9,2182.1,0.00369991]
[1770235613903,6.95298406,2182.9,2181.5,6.87649422]
[1770235614304,7.18249406,2182.9,2181.5,6.87649422]
[1770235614706,7.18249406,2182.9,2181.6,0.9167]
[1770235614909,7.18249406,2182.9,2181.6,0.92144671]
[1770235615510,7.33146767,2182.7,2181.6,0.92144671]
[1770235615710,7.33146767,2182.5,2181.6,0.92144671]
[1770235615910,7.33146767,2182.2,2180.7,2.63254948]
[1770235616109,7.33146767,2182.2,2180.8,7.29489601]
[1770235616410,7.33146767,2182.2,2181.0,7.29489601]
[1770235616614,0.00540622,2182.5,2181.4,7.52455601]
[1770235616615,7.33687389,2182.5,2181.4,7.52455601]
[1770235616806,0.00540622,2182.5,2181.6,7.52453601]
[1770235617521,7.78946767,2182.8,2181.7,0.9162]
[1770235618014,8.01898767,2182.8,2181.7,0.9162]
[1770235618216,7.33146767,2182.6,2181.7,0.9162]
[1770235618619,7.33146767,2182.4,2181.7,0.9162]
[1770235620617,7.33146767,2182.4,2181.4,0.00519858]
[1770235621920,7.56102767,2182.4,2181.4,0.00519858]
[1770235622315,0.00543668,2182.6,2180.6,7.23126541]
[1770235622316,7.29940848,2182.2,2180.6,7.23126541]
[1770235622515,7.29940848,2181.6,2180.3,7.46051541]
[1770235622717,0.22966,2181.5,2180.3,0.459]
[1770235622913,7.29940848,2181.4,2180.3,0.459]
[1770235623113,7.29940848,2181.4,2180.0,1.0]
[1770235623114,7.29940848,2180.8,2180.0,1.0]
[1770235623319,7.99338603,2180.8,2179.3,0.68096456]
[1770235623614,7.99338603,2180.8,2179.3,7.68247997]
[1770235624012,7.76365603,2180.8,2179.3,7.68247997]
[1770235624521,7.76365603,2180.8,2179.5,7.00151541]
[1770235624720,7.76365603,2180.8,2179.5,7.23138541]
[1770235625321,7.29940848,2181.4,2179.7,7.00151541]
[1770235625621,7.29940848,2182.0,2180.7,7.00151541]
[1770235625816,7.29940848,2182.0,2180.4,7.00151541]
[1770235626013,7.29940848,2181.8,2180.4,7.00151541]
[1770235626214,7.29940848,2181.6,2180.4,7.00151541]
[1770235626414,7.30468577,2181.6,2180.4,7.00151541]
[1770235627220,7.30468577,2181.6,2180.3,0.459]
[1770235627726,7.29940848,2181.4,2180.3,0.459]
[1770235629526,7.29940848,2181.2,2180.3,0.459]
[1770235630224,7.29940848,2181.0,2179.7,7.00151541]
[1770235630429,7.29940848,2181.5,2179.9,7.00151541]
[1770235630727,7.29940848,2181.5,2179.9,7.23133541]
[1770235631929,7.52906848,2181.5,2179.9,7.23133541]
[1770235632727,7.52906848,2181.5,2180.1,7.00151541]
[1770235632927,7.29940848,2181.3,2180.0,0.22981]
[1770235633127,7.29940848,2181.3,2180.0,7.23132541]
[1770235634228,7.29940848,2181.1,2180.0,7.00151541]
[1770235636033,7.29940848,2180.8,2179.4,0.68887]
[1770235636330,7.52919848,2180.3,2179.4,0.459]
[1770235636723,7.29940848,2180.1,2179.3,0.22681895]
[1770235636923,0.22974,2180.7,2179.3,0.22681895]
[1770235637130,7.29940848,2180.6,2179.3,0.22681895]
[1770235637428,7.29940848,2180.6,2179.3,7.22833436]
[1770235638326,7.52915848,2180.6,2179.3,7.22833436]
[1770235638531,7.29940848,2180.4,2179.3,0.22681895]
[1770235639332,7.52917848,2180.4,2179.3,0.22681895]
[1770235639630,7.29940848,2180.2,2179.3,0.22681895]
[1770235640730,7.52919848,2180.2,2179.3,0.22681895]
[1770235641533,7.52919848,2180.2,2179.3,0.2215714]
[1770235641735,7.29940848,2180.2,2178.6,7.23147541]
[1770235641933,7.29940848,2180.0,2178.6,7.23147541]
[1770235642730,7.29940848,2180.0,2178.6,7.23556379]
[1770235642938,7.29940848,2179.8,2178.6,0.00408838]
[1770235643142,7.29940848,2179.6,2178.6,0.00408838]
[1770235643433,0.00366995,2180.0,2178.6,0.00408838]
[1770235643434,7.52928848,2179.4,2178.6,0.00408838]
[1770235644534,7.04700736,2179.2,2178.0,1.0]
[1770235645632,7.04700736,2179.2,2178.0,7.94853984]
[1770235645941,7.50600736,2179.4,2178.4,7.17528247]
[1770235646234,0.459,2179.4,2178.6,0.22996]
[1770235646438,7.04700736,2179.8,2178.7,6.94531247]
[1770235646738,7.04700736,2179.8,2178.8,7.17525247]
[1770235646940,7.05067731,2180.0,2178.8,7.17525247]
[1770235647336,7.04700736,2179.6,2178.5,6.94531247]
[1770235647638,7.04700736,2179.6,2178.4,0.459]
[1770235648033,7.04700736,2179.6,2178.4,7.40431247]
[1770235648234,7.04700736,2179.6,2178.6,6.94531247]
[1770235648534,7.04700736,2179.6,2178.6,7.17527247]
[1770235648734,7.04700736,2179.9,2178.6,7.17527247]
[1770235649236,7.04700736,2179.9,2178.8,6.94531247]
[1770235649943,0.00366995,2180.0,2179.0,7.17523247]
[1770235650639,7.05067731,2180.0,2179.0,7.17523247]
[1770235651031,0.00366995,2180.0,2179.0,7.17523247]
[1770235651637,7.04700736,2180.3,2179.2,7.17520247]
[1770235651833,7.50600736,2180.6,2179.4,6.94531247]
[1770235652033,7.50600736,2180.6,2179.6,0.22985]
[1770235652238,7.50600736,2180.6,2179.3,7.40431247]
[1770235652739,7.50600736,2180.6,2179.3,7.40798449]
[1770235652740,7.51149502,2180.6,2179.3,7.40798449]
[1770235652934,7.04700736,2180.3,2179.3,0.46267202]
[1770235653138,7.27679736,2180.3,2179.3,0.46267202]
[1770235653334,7.04700736,2180.0,2179.3,0.00367202]
[1770235653539,7.04700736,2180.0,2178.7,6.94531247]
[1770235653540,7.27682736,2180.0,2178.7,6.94531247]
[1770235654544,7.04700736,2179.8,2178.7,0.00409875]
[1770235654744,7.04700736,2179.5,2178.7,0.00409875]
[1770235655145,7.04700736,2180.0,2178.7,6.94941122]
[1770235656446,7.27681736,2180.0,2178.7,0.00409875]
[1770235656842,7.04700736,2179.8,2178.7,0.00409875]
[1770235657046,7.27684736,2179.8,2178.7,0.00409875]
[1770235658645,7.27684736,2179.8,2178.0,1.0]
[1770235658646,0.22989,2179.3,2178.0,1.0]
[1770235658844,7.04700736,2179.2,2178.0,7.94531247]
[1770235659050,7.04700736,2179.2,2178.0,8.17533247]
[1770235659549,7.04700736,2179.2,2178.0,8.17857269]
[1770235659851,7.04700736,2179.2,2178.0,1.23326022]
[1770235660549,7.27688736,2179.2,2178.0,1.00324022]
[1770235661047,7.04700736,2178.8,2178.0,1.00324022]
[1770235661253,7.28266507,2178.8,2178.0,1.00324022]
[1770235662251,7.28266507,2178.8,2177.2,7.17540247]
[1770235662252,7.04700736,2178.5,2177.2,7.17540247]
[1770235662645,7.04700736,2178.5,2177.2,6.94531247]
[1770235662952,7.27695736,2178.5,2177.0,0.10105418]
[1770235663147,0.22998,2178.3,2177.0,0.10105418]
[1770235663345,0.23003,2177.8,2176.3,6.94531247]
[1770235663553,7.73604736,2177.7,2176.3,6.94531247]
[1770235663752,7.73604736,2177.7,2176.0,10.57677204]
[1770235664154,7.73604736,2177.7,2176.1,6.94531247]
[1770235664856,7.73604736,2177.7,2176.0,1.0]
[1770235664857,7.27706736,2177.5,2176.0,1.0]
[1770235665153,7.27706736,2177.5,2176.0,7.94531247]
[1770235665746,7.04700736,2177.5,2176.0,7.94531247]
[1770235665950,7.04700736,2177.5,2176.0,8.17552247]
[1770235666551,7.27708736,2177.3,2176.0,7.94531247]
[1770235666855,7.27710736,2177.1,2176.0,1.0]
[1770235667156,7.27714736,2176.7,2175.5,0.459]
[1770235667350,7.27714736,2176.7,2175.4,6.94531247]
[1770235667755,7.27716736,2176.5,2175.0,6.94531247]
[1770235668155,0.459,2176.8,2175.0,6.94531247]
[1770235668156,7.04700736,2176.3,2175.0,6.94531247]
[1770235668851,7.27718736,2176.3,2175.0,6.94531247]
[1770235669157,7.04700736,2175.9,2174.7,6.94531247]
[1770235669856,7.04700736,2175.9,2174.6,2.3910538]
[1770235669857,7.27722736,2175.9,2174.6,2.3910538]
[1770235670058,7.04700736,2175.7,2174.6,2.3910538]